Cogmind - Beta 16 @@@ ROGUE MODE // 2025.12.27 @ 18:43:41 // AFD2020/Player2 Player: Michael Result: Core destroyed Performance ------------- Evolutions (0) 0 Regions Visited (4) 800 Robots Destroyed (9) 45 Value Destroyed (195) 195 Prototype IDs (23) 460 Alien Tech Used (0) 0 Bonus (447) 447 TOTAL SCORE: 1947 Bonus ------- Follower Combat Kills 195 Aligned with FarCom 300 Friendly Fire -48 Cogmind --------- Core Integrity 0/250 Matter 300/300 Energy 265/265 System Corruption 0% Temperature Cool (11) Movement Walking (400) Ox4 Location -9/Mines Parts ------- > --- POWER (1) -------- Improved Ion Engine > --- PROPULSION (2) --- Aluminum Leg > --- UTILITY (2) ------ High-capacity Storage Unit > --- WEAPON (2) ------- Light Assault Rifle Light Assault Rifle > --- INVENTORY (20) --- Ion Engine Armored Treads Aluminum Leg Wheel Improved Heat Sink Improved Cooling System Lightpack 2.0 Sensor Array Improved Terrain Scanner Advanced Terrain Scan Processor Light Assault Rifle Grenade Launcher Peak State ------------ > --- POWER ------------ Ion Engine > --- PROPULSION ------- Aluminum Leg Aluminum Leg > --- UTILITY ---------- High-capacity Storage Unit Tractor Beam > --- WEAPON ----------- Light Assault Rifle Light Assault Rifle > --- INVENTORY -------- Armored Treads Aluminum Leg Improved Heat Sink Lightpack 2.0 Sensor Array Improved Terrain Scanner Cloak of Protection Trap Reconfigurator Light Assault Rifle Grenade Launcher [Rating: 13] Favorites ----------- Power Ion Engine Engine Ion Engine Propulsion Aluminum Leg Leg Aluminum Leg Utility Tractor Beam Device Tractor Beam Storage Small Storage Unit Weapon Light Assault Rifle Ballistic Gun Light Assault Rifle Launcher Grenade Launcher Build | -11 -10 -10 -10 -9 ------- Run | Yrd Mat Min Exi Min Slots Evolved . | . . . . . Power . | . . . . . Propulsion . | . . . . . Utility . | . . . . . Weapon . | . . . . . Parts Attached 18 | 6 4 5 2 1 Power 3 | 1 . 1 . 1 Engine 3 | 1 . 1 . 1 Core . | . . . . . Reactor . | . . . . . Propulsion 4 | 2 . 2 . . Treads . | . . . . . Leg 4 | 2 . 2 . . Wheel . | . . . . . Hover . | . . . . . Flight . | . . . . . Utility 5 | 1 3 . 1 . Device 3 | . 3 . . . Storage 2 | 1 . . 1 . Processor . | . . . . . Hackware . | . . . . . Protection . | . . . . . Artifact . | . . . . . Weapon 6 | 2 1 2 1 . Energy Gun . | . . . . . Energy Cannon . | . . . . . Ballistic Gun 4 | 2 . 1 1 . Ballistic Cannon . | . . . . . Launcher 2 | . 1 1 . . Special Weapon . | . . . . . Impact Weapon . | . . . . . Slashing Weapon . | . . . . . Piercing Weapon . | . . . . . Special Melee Weapon . | . . . . . Unidentified Prototypes . | . . . . . Parts Lost 3 | . . 1 . 2 Power 1 | . . 1 . . Propulsion 1 | . . . . 1 Utility 1 | . . . . 1 Weapon . | . . . . . Highest Loss Streak 2 | . . 1 . 2 To Critical Strikes . | . . . . . Average Backups 7 | 3 6 7 7 9 Power . | . . . . . Propulsion 1 | 2 1 2 1 2 Utility 3 | . 1 2 4 4 Weapon 1 | . 2 2 1 2 Tool/Special . | . . . . . Unused Backups 16 | 1 4 3 2 6 Power 1 | . 1 . . . Propulsion 5 | 1 2 1 . 1 Utility 7 | . . . 2 5 Weapon 3 | . 1 2 . . Tool/Special . | . . . . . Average Slot Usage (%) 99 | . 99 99 100 99 Engine 13 | . 14 13 14 14 Leg 28 | . 28 28 28 28 Device 13 | . 13 14 14 13 Storage 14 | . 14 14 14 14 Ballistic Gun 27 | . 27 28 28 28 Peak Build Rating 13 | 6 9 8 13 13 Average Rating 9 | 4 7 7 11 11 On Entrance 6 | . 6 8 8 11 Avg Prop Armor Cover (%) . | . . . . . Naked Turns . | . . . . . Heaviest Build 50 | 12 15 15 48 50 Greatest Support 20 | 20 20 20 20 20 Greatest Overweight (x) 2 | . . . 2 2 Average Overweight (x) . | . . . . 2 Largest Inventory Capacity 20 | 8 8 8 20 20 Average Capacity 13 | 6 8 8 15 20 Most Carried 14 | 5 8 8 12 14 Average Carried 8 | 3 6 7 8 11 Final Capacity 20 | 8 8 8 20 20 Final Carried 14 | 5 8 7 10 14 Class Distribution -------------------- 100% | Mutant Dominant Class ---------------- Mutant | -10/Materials Mutant | -10/Mines Mutant | -10/Exiles Mutant | -9/Mines Resources | -11 -10 -10 -10 -9 ----------- Run | Yrd Mat Min Exi Min Matter Collected 599 | 256 106 187 . 50 Remotely 212 | . 50 112 . 50 Salvage Created 164 | . 34 130 . . Parts 17 | . 6 11 . . Haulers Intercepted . | . . . . . Recyclers Shooed . | . . . . . Parts Field Recycled . | . . . . . Retrieved Matter . | . . . . . Parts Self-Destructed . | . . . . . Prevented . | . . . . . Parts Restored . | . . . . . Kills | -11 -10 -10 -10 -9 ------- Run | Yrd Mat Min Exi Min Combat Hostiles Destroyed 10 | . 4 6 . . Guns 2 | . . 2 . . AOE 8 | . 4 4 . . Classes Destroyed 3 | . 2 1 . . Swarmer 6 | . 3 3 . . Grunt 3 | . 1 2 . . Assembled 1 | . . 1 . . Best Kill Streak 4 | . 4 3 . . Combat Bots Only 4 | . 4 3 . . Max Kills in Single Turn 2 | . 2 2 . . Gunslinging . | . . . . . Exploded 2 | . 2 2 . . Melee . | . . . . . Uniques/NPCs Destroyed . | . . . . . Combat | -11 -10 -10 -10 -9 -------- Run | Yrd Mat Min Exi Min Hostile Shots Fired 59 | . 29 16 . 14 Missed 24 | . 12 6 . 6 Hits 35 | . 17 10 . 8 Projectile 35 | . 17 10 . 8 AOE 11 | . . . . 11 Damage Taken 680 | . 168 145 . 367 Core 151 | . 52 13 . 86 Absorbed by Shields . | . . . . . Regen/Repaired (Parts) 30 | . 30 . . . Core Remaining (%) 100 | 100 . . . . Volleys Fired 26 | . 13 11 . 2 Largest 2 | . 2 2 . 2 Hottest 40 | . 40 40 . 40 Shots Fired 40 | . 18 18 . 4 Gun 28 | . 10 14 . 4 Cannon . | . . . . . Launcher 12 | . 8 4 . . Special . | . . . . . Kinetic 28 | . 10 14 . 4 Thermal . | . . . . . Explosive 12 | . 8 4 . . Electromagnetic . | . . . . . Robot Hit Streak 8 | . 3 8 . 6 Robot Miss Streak 3 | . 3 2 . 2 Penetration Max . | . . . . . Secondary Targets . | . . . . . Shots Hit Robots 25 | . 8 15 . 2 Core Hits 19 | . 5 13 . 1 Critical Kills . | . . . . . Critical Parts Destroyed . | . . . . . Critical Strikes . | . . . . . Melee Attacks . | . . . . . Impact . | . . . . . Slashing . | . . . . . Piercing . | . . . . . Sneak Attacks . | . . . . . Combat Hostiles . | . . . . . Follow-up Attacks . | . . . . . Damage Inflicted 748 | . 341 391 . 16 Guns 186 | . 55 115 . 16 Cannons . | . . . . . Explosions 562 | . 286 276 . . Melee . | . . . . . Ramming . | . . . . . Kinetic 186 | . 55 115 . 16 Thermal . | . . . . . Explosive 562 | . 286 276 . . Electromagnetic . | . . . . . Impact . | . . . . . Slashing . | . . . . . Piercing . | . . . . . Highest Corruption . | . . . . . Average Corruption . | . . . . . Corruption Purged . | . . . . . Corruption Blocked . | . . . . . Overload Shots . | . . . . . Overflow Damage . | . . . . . Projectiles . | . . . . . Explosions . | . . . . . Melee . | . . . . . Knockbacks . | . . . . . Impact . | . . . . . Kinetic . | . . . . . Secondary . | . . . . . Self-Inflicted Damage 31 | . . 31 . . Shots 2 | . . 2 . . Rammed . | . . . . . Targets Rammed . | . . . . . Kicked . | . . . . . Crushed . | . . . . . Highest Temperature 11 | . . 4 . 11 Average Temperature 3 | . . 4 . 3 Received Heat Transfer 126 | . 66 51 . 9 Siege Activations . | . . . . . Martial Activations . | . . . . . Shielding Activations . | . . . . . Robots Disrupted . | . . . . . Combat Hostiles . | . . . . . Robots Corrupted . | . . . . . Combat Hostiles . | . . . . . Parts Fried . | . . . . . Impact Corruptions . | . . . . . Robots Melted . | . . . . . Combat Hostiles . | . . . . . Parts Melted . | . . . . . Heat Transferred . | . . . . . Parts Sabotaged . | . . . . . Parts Stolen . | . . . . . Parts Stripped . | . . . . . Power Chain Reactions . | . . . . . Alert | -11 -10 -10 -10 -9 ------- Run | Yrd Mat Min Exi Min Maximum Alert Level 1 | . 1 . . . Low Security (%) 85 | 100 50 100 . 100 Level 1 14 | . 49 . . . Level 2 . | . . . . . Level 3 . | . . . . . Level 4 . | . . . . . Level 5 . | . . . . . High Security . | . . . . . Max Security . | . . . . . Peak Influence 306 | . 306 101 . 1 Initial 101 | . . 101 . . Average 53 | . 143 40 . . Influence Increases 651 | . 477 172 . 2 Destroy 0b10 Robot/C 320 | . 220 100 . . Destroy 0b10 Robot/NC 35 | . 30 5 . . Destroy Leader 74 | . 54 20 . . Allied During Kill 89 | . 71 18 . . Successful Hack 12 | . 12 . . . Disable Machine 30 | . 30 . . . Destroy Structure 91 | . 60 29 . 2 Influence Decreases 651 | . 217 430 2 2 Entered New Map 161 | . . 159 2 . Time Decay 468 | . 207 261 . . Lost Part 22 | . 10 10 . 2 Squads Dispatched 3 | . 2 . . 1 Investigation 2 | . 1 . . 1 Extermination . | . . . . . Reinforcement 1 | . 1 . . . Assault . | . . . . . Garrison . | . . . . . Intercept . | . . . . . Searches Triggered . | . . . . . Construction Impeded . | . . . . . Haulers Reinforced . | . . . . . Active Scanning Responses . | . . . . . Cargo Convoy Interrupts . | . . . . . Stealth | -11 -10 -10 -10 -9 --------- Run | Yrd Mat Min Exi Min Distress Signals 2 | . 2 . . . Communications Jammed . | . . . . . Distress Signals . | . . . . . Times Spotted 23 | . 13 9 . 1 Peak Tracking Total 7 | . 7 3 . 1 Tactical Retreats . | . . . . . Traps | -11 -10 -10 -10 -9 ------- Run | Yrd Mat Min Exi Min Traps Triggered 1 | . 1 . . . Indirectly . | . . . . . Trap Hack Attempts . | . . . . . Triggered . | . . . . . Disarmed . | . . . . . Reprogrammed . | . . . . . Reused . | . . . . . Traps Extracted . | . . . . . Installed . | . . . . . Triggered . | . . . . . Machines | -11 -10 -10 -10 -9 ---------- Run | Yrd Mat Min Exi Min Machines Disabled 3 | . 3 . . . Max in Single Turn 1 | . 1 . . . Machines Repaired . | . . . . . Machines Dismantled . | . . . . . Machines Sabotaged . | . . . . . Overloaded Fab Kills . | . . . . . Hacking | -11 -10 -10 -10 -9 --------- Run | Yrd Mat Min Exi Min Machines Accessed 11 | . 7 1 2 1 Terminals 5 | . 5 . . . Fabricators . | . . . . . Repair Stations 1 | . 1 . . . Recycling Units 1 | . 1 . . . Scanalyzers . | . . . . . Garrison Access . | . . . . . Total Hacks 20 | . 16 1 2 1 Successful 12 | . 8 1 2 1 Failed 8 | . 8 . . . Catastrophic . | . . . . . Database Lockouts . | . . . . . Manual 1 | . . . 1 . Terminals 10 | . 10 . . . Fabricators . | . . . . . Repair Stations 5 | . 5 . . . Recycling Units 1 | . 1 . . . Scanalyzers . | . . . . . Garrison Access . | . . . . . Terminal Hacks 7 | . 3 1 2 1 Record 1 | . . . 1 . Open Door 2 | . . 1 . 1 Branch Access Points 1 | . 1 . . . Locate Traps 1 | . 1 . . . Hauler Manifests 1 | . 1 . . . Proto ID Catalog 1 | . . . 1 . Fabricator Hacks . | . . . . . Repair Station Hacks 4 | . 4 . . . Scan Component 2 | . 2 . . . Repair 2 | . 2 . . . Recycling Unit Hacks 1 | . 1 . . . Retrieve Components 1 | . 1 . . . Scanalyzer . | . . . . . Garrison Access Hacks . | . . . . . Unauthorized Hacks . | . . . . . Terminals . | . . . . . Fabricators . | . . . . . Repair Stations . | . . . . . Recycling Units . | . . . . . Scanalyzers . | . . . . . Garrison Access . | . . . . . Data Cores Recovered . | . . . . . Used . | . . . . . Hacking Detections 5 | . 5 . . . Full Trace Events . | . . . . . Feedback Events . | . . . . . Feedback Blocked . | . . . . . Robot Schematics Acquired . | . . . . . Robots Built . | . . . . . Authchips . | . . . . . Time . | . . . . . Total Robot Build Rating . | . . . . . Part Schematics Acquired . | . . . . . Parts Built . | . . . . . Authchips . | . . . . . Time . | . . . . . Total Part Build Rating . | . . . . . Part Studies Acquired . | . . . . . Parts Repaired 2 | . 2 . . . Time 64 | . 64 . . . Parts Recycled . | . . . . . Recycled Matter . | . . . . . Retrieved Matter . | . . . . . Retrieved Components 2 | . 2 . . . Parts Scanalyzed . | . . . . . Part Schematics Acquired . | . . . . . Parts Damaged . | . . . . . Bothacking | -11 -10 -10 -10 -9 ------------ Run | Yrd Mat Min Exi Min Used RIF Installer . | . . . . . Robots Hacked . | . . . . . Non-combat . | . . . . . Combat . | . . . . . Robot Hacks Applied . | . . . . . Relay Couplers Released . | . . . . . Fabnet Peak Effective % . | . . . . . Robots Rewired . | . . . . . Allies Hacked . | . . . . . Hacks Repelled . | . . . . . Allies | -11 -10 -10 -10 -9 -------- Run | Yrd Mat Min Exi Min Total Allies 2 | . 1 . . 1 Largest Group 2 | . 1 1 1 2 Highest-Rated Group 94 | . 57 63 63 94 Highest-Rated Ally 68 | . 57 63 63 68 Total Orders . | . . . . . Ally Attacks 36 | . 22 9 . 5 Total Damage 735 | . 456 182 . 97 Kills 17 | . 13 4 . . Allies Corrupted . | . . . . . Allies Melted . | . . . . . Intel | -11 -10 -10 -10 -9 ------- Run | Yrd Mat Min Exi Min Active Infowar (turns) . | . . . . . Robot Analysis Total . | . . . . . Derelict Logs Recovered 4 | . . 3 . 1 Drone Launches . | . . . . . Drone Recoveries . | . . . . . Exploration | -11 -10 -10 -10 -9 ------------- Run | Yrd Mat Min Exi Min Turns Passed 3082 | 62 674 585 820 941 Spaces Moved 1715 | 41 438 435 443 358 Core 6 | 6 . . . . Treads . | . . . . . Legs 1709 | 35 438 435 443 358 Wheels . | . . . . . Hover . | . . . . . Flight . | . . . . . Fastest Speed 50 | 50 120 120 120 260 Average Speed 165 | 109 120 120 182 260 Slowest Speed 260 | 120 120 120 260 260 Overloaded Moves . | . . . . . Propulsion Burnouts . | . . . . . Robots Hopped . | . . . . . Potential Cave-ins . | . . . . . Cave-ins Triggered . | . . . . . Exploration Rate (%) 59 | 3 63 85 61 83 Regions Visited 4 Branch Regions 3 Pre-discovered Areas 3 | . . 2 1 . Known Exits Taken 1 | . 1 . . . Unknown Exits Taken 3 | 1 . 1 1 . Scrap Searched 2 | . . 1 . 1 Spaces Dug 8 | . 8 . . . Terrain Destroyed 85 | . 59 26 . . Melee . | . . . . . Projectile . | . . . . . AOE 85 | . 59 26 . . Terrain Rammed . | . . . . . Walls Destroyed . | . . . . . Machines Disabled . | . . . . . Actions | -11 -10 -10 -10 -9 --------- Run | Yrd Mat Min Exi Min Total 1931 | 55 570 483 458 365 Wait 119 | 2 99 18 . . Move 1711 | 40 437 434 442 358 Hop . | . . . . . Pick Up 28 | 6 8 4 7 3 Fast Attach 9 | 6 2 . . 1 Attach 1 | . . 1 . . Detach 2 | . 1 . . 1 Swap 16 | . 5 9 2 . Drop 19 | 1 5 6 7 . Fire 26 | . 13 11 . 2 Melee . | . . . . . Ram . | . . . . . Kick . | . . . . . Crush . | . . . . . Escape Stasis . | . . . . . Rewire . | . . . . . Trap . | . . . . . Miscellaneous . | . . . . . Route ------- -11/Scrapyard -10/Materials (discovered 3 exits: [*Mat] / *Min x2) -10/Mines (discovered 3 exits: [*Mat x2] / *Exi) -10/Exiles -9/Mines History --------- Turn | Location | Event 11 | -11/Scrapyard | Discovered new exit (range 15) 63 | -11/Scrapyard | Entered Materials 186 | -10/Materials | Discovered new exit (range 15) 211 | -10/Materials | Discovered new exit (range 16) 306 | -10/Materials | Build established: Mutant 320 | -10/Materials | Discovered new exit (range 5) 443 | -10/Materials | Repaired Sensor Array 605 | -10/Materials | Identified exit to Mines 726 | -10/Materials | Repaired Imp. Heat Sink 737 | -10/Materials | Entered Mines 763 | -10/Mines | Discovered new exit (range 15) 801 | -10/Mines | Learned Materials machine intel 834 | -10/Mines | Met a Derelict who couldn't figure out how to use a Trap Extractor 1012 | -10/Mines | Assembled infested the area 1050 | -10/Mines | Discovered new exit (range 8) 1213 | -10/Mines | Learned location of Mines (-9) 1271 | -10/Mines | Found a hidden stash of uninstalled traps 1297 | -10/Mines | Deemed a non-threat by the Exiles lab entrance 1297 | -10/Mines | Discovered new exit (range 5) 1322 | -10/Mines | Entered Exiles 1351 | -10/Exiles | Met 8R-AWN 1370 | -10/Exiles | Met EX-HEX 1420 | -10/Exiles | Met EX-DEC 1425 | -10/Exiles | Learned location of Zion (-7) 1450 | -10/Exiles | Met EX-BIN 1467 | -10/Exiles | Aligned with FarCom system 1468 | -10/Exiles | Given EX-Vault access code 1497 | -10/Exiles | Opened EX-Vault 1501 | -10/Exiles | Found Prototype Device 1504 | -10/Exiles | Found Prototype Storage 1510 | -10/Exiles | Found Prototype Device 1513 | -10/Exiles | Identified Lightpack 2.0 1513 | -10/Exiles | Identified Cloak of Protection 1513 | -10/Exiles | Identified Trap Reconfigurator 1538 | -10/Exiles | Warned to stay clear of 0b10 Research branches 2115 | -10/Exiles | Discovered new exit (range 10) 2142 | -10/Exiles | Left Exiles lab with Lightpack 2.0 2142 | -10/Exiles | Entered Mines 2179 | -9/Mines | Received a Mining Laser from a helpful Derelict 2491 | -9/Mines | Learned Materials machine intel 2692 | -9/Mines | Met a Derelict shopkeep closing up shop 2765 | -9/Mines | YI-UF0 nonchalantly dropped a Grenade Launcher on the ground 3078 | -9/Mines | Core integrity fell below 50% 3082 | -9/Mines | Core integrity fell below 20% 3083 | -9/Mines | Core destroyed Last Messages --------------- 02721_ R-06 Scavenger collects Beam Cannon. 02726_ R-06 Scavenger collects Hover Unit. 02729_ K-01 Serf collects debris. 02765_ YI-UF0 nonchalantly drops a Grenade Launcher on the ground. 02768_ K-01 Serf collects debris. 02771_ YI-UF0 mumbles something. 02771_ K-01 Serf collects debris. 02918_ Acquired Imp. Ion Engine. 02919_ Acquired 10 matter. 02919_ K-01 Serf collects debris. 03079_ YI-UF0 mumbles something. 03079_ The unstable cave ceiling collapses. 03079_ K-01 Serf collects debris. 03079_ Tractor Beam destroyed. 03082_ The unstable cave ceiling collapses. Player 2: "Did anyone ever tell you... YOU'RE IN MY WAY, DAMMIT!" 03083_ The unstable cave ceiling collapses. 03083_ Aluminum Leg destroyed. Map ----- +----------------------------------------------------+ | ???????## # #????????? | | ???????# ### #### #????????? | | ???????# ##?# #??## ##????????? | | ???????# ###??# #???## ##?????????? | | ???????# ####### #????## #??????????? | | ???????# ## ## #?????# #??#####???? | | ???????## # ## #?????# #### ##### | | ????????### ## #?????# % | | ??????????## ## #?????# % | | ???????????## #####?#### ### | | ????????????### #????# | ##?# | | ??????????????## ### #????## #??# | | ??????????????## ##?????????#% #??# | | ??????????????# ##?????????# #?# | | ??????????????# ##????????? #?# | | ?????????????## ##????????? #?# | | ?????????????# #?????????##### ##?### | | ?????????????# #?????????????#####????? | | ????????????## #??????????????????????? | | ????????????# ##??????????????????????? | | ????????????# ####?????????????????????? | | ????????????## # ###???????????????????? | | ?????????????# ##???????? #????????? | | ?????????????# #???? ##????????? | | ?????????????# ## % ##???????? | | ?????????????# @ @ = #???????? | | ?????????????## #?????????????? | | ??????????????# g #??????????? | | ??????????????# * ??????? | | ??????????????# ] ??????? | | ??????????????## # ### ???????? | | ???????????????######?? ;# ##???????? | | ???????????????????????? #??????????? | | ?????????????????????????u"" #?????????? | | ??????????????????????????""" ?????????? | | ???????????????????????????"?? ?????????? | | ???????????????????????????????? ?????????? | | ?????????????????????????????????????????# | | ??????????????????????????????????????????? | | ??????????????????????????????????????????? | | ??????????????????????????????????????????? | | ??????????????????????????????????????????? | | ?????????????????????????????????????????## | | ???????????????????????????????????????## | | ?????????????????????????????????????### | | ??????????????????????????????????#### | | ?????????????????????????????????## | | ?????????????????????????????????# """ # | | ?????????????????????????????????# """ #? | | ?????###?????????????????????##### """ #? | +----------------------------------------------------+ Best States ------------- Heat Dissipation 39 Energy Generation 12 Energy Capacity 265 Matter Stores 300 Matter Capacity 300 Sight Range 16 Terrain Scan Density 10 Evasion (%) 55 Item Schematics ----------------- None Robot Schematics ------------------ None Fabricated ------------ Nothing Repaired ---------- Sensor Array | 35% | -10/Materials Imp. Heat Sink | 57% | -10/Materials Studied --------- None Alien Tech Used ----------------- None Achievements -------------- None Challenges ------------ None Player 2 | -11 -10 -10 -10 -9 ---------- Run | Yrd Mat Min Exi Min Slots Evolved . | . . . . . Power . | . . . . . Propulsion . | . . . . . Utility . | . . . . . Weapon . | . . . . . Parts Attached 19 | . 12 5 . 2 Parts Lost 1 | . 1 . . . Damage Taken 507 | . 206 154 . 147 Core 115 | . 42 . . 73 Player 2/Cogmind (%) 43 | . 44 . . 45 Absorbed by Shields . | . . . . . Damage Inflicted 735 | . 456 182 . 97 Player 2/Cogmind (%) 49 | . 57 31 . 85 Combat Hostiles Destroyed 10 | . 7 3 . . Player 2/Cogmind (%) 50 | . 63 33 . . Game ------ Seed LightArmorInterpreter Manual? 0 Play Time 00:20:34 Cumulative 1087.2 hours Start 2025.12.27 @ 18:25:44 End 2025.12.27 @ 18:43:41 Sessions 1 Manual Loads 0 Difficulty Rogue Special Mode AFD2020/Player2 Game No. 306 Rogue 270 Adventurer 36 Explorer 0 Win Type - Total 19 Types 19/0/0/0/0/0/0/0/0/0 Lore% 35 Gallery% 53 Achievement% 31 Wizard Run 0 Options --------- Layout 1 ASCII 0 Keyboard 1 Movement Vi Keybinds 0 Fullscreen 1 Font 24/Crisp Map View 25x17 Zoom Use 99% Tactical HUD 1 Map Filters NONE Filters NONE Steam 0 RUN: 3584abe8-1fbc-4cd6-b66a-e6073e410c88